{"text_format":"1","workbook":"xlsx","n_sheets":6,"sheets":["Home","1. Odo reading","2. Service planning","3. Checklist","BlankPage","DevFrame"],"not_rendered":{"charts":1,"images":1,"macros":1,"external_links":0,"defined_names":193,"comments":0,"pivot_tables":0},"unopened":[],"bounds":{"document_bytes":16777216,"sheet_cells":100000,"rows_first":2000,"rows_last":500,"rows_between":2000,"halvings":0,"cell_chars":16384,"cell_head_chars":4096},"cells_cut":0,"cells_raw":0,"read":"whole","date_system":"1900"}

{"sheet":"Home","index":0,"n_rows":72,"n_cols":8,"rows_kept":72,"cut":false,"hidden":false,"merged":[[46,4,46,5],[51,4,55,5],[58,4,58,5],[5,4,5,5],[38,4,40,4],[33,4,35,4],[41,4,42,4],[12,4,12,5],[36,4,37,4]]}
["DevFrame settings",null,"H",null,null,null,null,"HL"]
["HiddenStatus","VISIBLE",null,null,null,"ENGINEXCEL"]
["ProtectSheet",true,null,null,null,"alessandro@enginexcel.com"]
["HeadingsVisibility",false,null,null,null,"enginexcel.com"]
["GridlineVisibility",false]
[null,null,null,null,"CAR SERVICE SCHEDULE"]
["Protection settings"]
["DrawingObjects",true]
["Contents",true]
["Scenarios",true]
["UserInterfaceOnly",true]
["AllowFormattingCells",false,null,null,"Introduction"]
["AllowFormattingColumns",false,null,null,"This spreadsheet allows to plan and record the services due on a car. It is especially suited to people who do their own maintenance."]
["AllowFormattingRows",false]
["AllowInsertingColumns",false,null,null,"Features"]
["AllowInsertingRows",false,null,null,"- Odo reading record"]
["AllowInsertingHyperlinks",false,null,null,"- Yearly average distance calculation"]
["AllowDeletingColumns",false,null,null,"- Custom units setting"]
["AllowDeletingRows",false,null,null,"- Service planning"]
["AllowSorting",false,null,null,"      - Service items input"]
["AllowFiltering",false,null,null,"      - Automated service due date calculation"]
["AllowUsingPivotTables",false,null,null,"      - Automated highlight of next service"]
["EnableSelection",true,null,null,"      - Plan up to 200 services"]
[null,null,null,null,"- Checklist printing"]
["Other settings",null,null,null,"      - Printer-friendly service checklist"]
["MarkProtectedCellsStatus",true,null,null,"      - Automated selection of due items before printing"]
["RowColumnDimensionStatus",false,null,null,"      - One-click printing"]
[]
[null,null,null,null,"Instructions"]
[null,null,null,null,"Operation","How to"]
[null,null,null,null,"How to define the units of the spreadsheet","Go to \"1. Odo reading\" page.\nType the units in the cell next to \"Units\"."]
[null,null,null,null,"How to enter an odometer reading","Go to \"1. Odo reading\" page.\nInsert the date and the Odo reading in the first space available under \"Odometer readings\".\nThe column \"Average\" will show the average distance travelled from last reading (will show from second reading onwards)."]
[null,null,null,null,"How to see the average yearly distance","Go to \"1. Odo reading\" page.\nGo to the top right side of the page.\nSee the value shown under \"Total average\"."]
[null,null,null,null,"How to input the service items","Go to \"2. Service planning\" page.\nUnder the \"Service items\" column insert all the service items (e.g. Change oil, verify brake pads thickness, etc.)."]
[null,null,null,null,null,"Go to \"Service planning\" table.\nStarting from the column \"Service #1\", input the  distance and/or the date when the first service is due. Do the same for all the other services.\nNote: If both distance and date are added, next service will be the earlier of the two."]
[null,null,null,null,null,"Starting from the column \"Service #1\", click on the cells next to the service items and select the tick (✓) from the dropdown menu for the items that need to be performed on that specific service."]
[null,null,null,null,"How to record a completed service","Go to \"2. Service planning\" page.\nGo to \"Service execution\" table\nGo to the column corresponding to the completed service.\nRecord the current odo value and/or the current date:"]
[null,null,null,null,null,"- Record the odo value in the cell next to \"Service completed at km\" (km will be substituted by your unit of measure).\n- Record the date in the cell next to \"Service completed on date\"."]
[null,null,null,null,"How to see when next services are due","Go to \"2. Service planning\" page.\nLook at the dates next to \"Estimated service date\".\nIf the service is due, the cell will show \"Due\" and will be highlighted in red."]
[null,null,null,null,null,"If the service is due in the future, the cell will show the estimated service date. This is calculated assuming that the car keeps travelling the average mileage previously calculated. \nIf the service is less than 10 days away, the cell will be highlighted in orange. Otherwise, the first next service will be highlighted in green."]
[null,null,null,null,null,"If the service is completed, the cell will show \"Done\"."]
[null,null,null,null,"How to print a checklist before doing the service","Go to \"3. Checklist\" page\nSelect the service from the dropdown menu next to \"Service #\".\nIf desired, insert the service distance and the date next to the corresponding cells."]
[null,null,null,null,null,"Click on the \"Print checklist\" button. This will automatically filter the items that are due and open a window to allow to select the printer. This also works with PDF printers (like PDF creator)."]
[]
[]
[null,null,null,null,"Terms of use"]
[null,null,null,null,"If you are using this spreadsheet you accept the terms of use:"]
[null,null,null,null,"http://enginexcel.com/terms-of-use"]
[null,null,null,null,"https://enginexcel.com/terms-of-use-car-service"]
[]
[null,null,null,null,"Disclaimer"]
[null,null,null,null,"Although the author has attempted to find and correct any bugs in the spreadsheet, the author is not responsible for any damage or losses of any kind caused by the use or misuse of the spreadsheet.\nThe author is under no obligation to provide support, service, corrections, or upgrades to the spreadsheet.\nFor more information, please send an email to the author (see contacts on top of the page)."]
[]
[]
[]
[]
[]
[null,null,null,null,"Compatibility"]
[null,null,null,null,"The compatibility of this spreadsheet has been verified on:"]
[null,null,null,null," - Microsoft Excel 2013"]
[null,null,null,null," - Microsoft Excel 2016"]
[null,null,null,null," - Microsoft Excel 2019"]
[null,null,null,null," - Microsoft Excel 2021"]
[null,null,null,null," - Microsoft Excel 365"]
[]
[null,null,null,null,"Version history"]
[null,null,null,null,"2.0   -   10/10/2022","Major upgrade of user interface"]
[]
[null,null,null,null,"Copyright"]
[null,null,null,null,"EnginExcel, All rights reserved"]
[]
[null,null,"HL"]

{"sheet":"1. Odo reading","index":1,"n_rows":862,"n_cols":19,"rows_kept":862,"cut":false,"hidden":false,"merged":[[5,6,5,7],[1,5,3,17],[8,6,8,7],[5,11,5,15],[6,11,6,12],[6,13,6,15]]}
["DevFrame settings",null,"H","H","H",null,null,null,null,null,null,null,null,null,null,null,null,null,"HL"]
["HiddenStatus","VISIBLE",null,"For chart",null,"ODO READING"]
["ProtectSheet",true,null,{"$f":"MIN(OFFSET(DateField,1,0))","v":"00:00:00"},{"$f":"AvgDistance","v":0}]
["HeadingsVisibility",false,null,{"$f":"MAX(OFFSET(DateField,1,0))","v":"00:00:00"},{"$f":"AvgDistance","v":0}]
["GridlineVisibility",false]
[null,null,null,null,null,null,"UNITS SETTINGS",null,null,null,null,"TOTAL AVERAGE"]
[null,null,null,null,null,null,"Units: ","km",null,null,null,null,null,{"$f":"Unit &\"/year\"","v":"km/year"}]
["Protection settings"]
["DrawingObjects",true,null,null,null,null,"ODOMETER READINGS"]
["Contents",true,null,null,null,null,"Date",{"$f":"\"Reading [\" & Unit &\"]\"","v":"Reading [km]"},null,{"$f":"\"Average [\" & Unit &\"/year]\"","v":"Average [km/year]"}]
["Scenarios",true,null,null,null,null,null,null,null,"-"]
["UserInterfaceOnly",true]
["AllowFormattingCells",false]
["AllowFormattingColumns",false]
["AllowFormattingRows",false]
["AllowInsertingColumns",false]
["AllowInsertingRows",false]
["AllowInsertingHyperlinks",false]
["AllowDeletingColumns",false]
["AllowDeletingRows",false]
["AllowSorting",false]
["AllowFiltering",false]
["AllowUsingPivotTables",false]
["EnableSelection",true]
[]
["Other settings"]
["MarkProtectedCellsStatus",true]
["RowColumnDimensionStatus",false]
[]
[]
[]
["TableStart"]
["TableStartRow",{"$f":"ROW(TableStart)","v":10}]
["TableStartColumn",{"$f":"COLUMN(TableStart)","v":7}]
[]
[]
[]
[]
[]
[]
[]
[]
[]
[]
[]
[]
[]
[]
[]
[]
[]
[]
[]
[]
[]
[]
[]
[]
[]
[]
[]
[]
[]
[]
[]
[]
[]
[]
[]
[]
[]
[]
[]
[]
[]
[]
[]
[]
[]
[]
[]
[]
[]
[]
[]
[]
[]
[]
[]
[]
[]
[]
[]
[]
[]
[]
[]
[]
[]
[]
[]
[]
[]
[]
[]
[]
[]
[]
[]
[]
[]
[]
[]
[]
[]
[]
[]
[]
[]
[]
[]
[]
[]
[]
[]
[]
[]
[]
[]
[]
[]
[]
[]
[]
[]
[]
[]
[]
[]
[]
[]
[]
[]
[]
[]
[]
[]
[]
[]
[]
[]
[]
[]
[]
[]
[]
[]
[]
[]
[]
[]
[]
[]
[]
[]
[]
[]
[]
[]
[]
[]
[]
[]
[]
[]
[]
[]
[]
[]
[]
[]
[]
[]
[]
[]
[]
[]
[]
[]
[]
[]
[]
[]
[]
[]
[]
[]
[]
[]
[]
[]
[]
[]
[]
[]
[]
[]
[]
[]
[]
[]
[]
[]
[]
[]
[]
[]
[]
[]
[]
[]
[]
[]
[]
[]
[]
[]
[]
[]
[]
[]
[]
[]
[]
[]
[]
[]
[]
[]
[]
[]
[]
[]
[]
[]
[]
[]
[]
[]
[]
[]
[]
[]
[]
[]
[]
[]
[]
[]
[]
[]
[]
[]
[]
[]
[]
[]
[]
[]
[]
[]
[]
[]
[]
[]
[]
[]
[]
[]
[]
[]
[]
[]
[]
[]
[]
[]
[]
[]
[]
[]
[]
[]
[]
[]
[]
[]
[]
[]
[]
[]
[]
[]
[]
[]
[]
[]
[]
[]
[]
[]
[]
[]
[]
[]
[]
[]
[]
[]
[]
[]
[]
[]
[]
[]
[]
[]
[]
[]
[]
[]
[]
[]
[]
[]
[]
[]
[]
[]
[]
[]
[]
[]
[]
[]
[]
[]
[]
[]
[]
[]
[]
[]
[]
[]
[]
[]
[]
[]
[]
[]
[]
[]
[]
[]
[]
[]
[]
[]
[]
[]
[]
[]
[]
[]
[]
[]
[]
[]
[]
[]
[]
[]
[]
[]
[]
[]
[]
[]
[]
[]
[]
[]
[]
[]
[]
[]
[]
[]
[]
[]
[]
[]
[]
[]
[]
[]
[]
[]
[]
[]
[]
[]
[]
[]
[]
[]
[]
[]
[]
[]
[]
[]
[]
[]
[]
[]
[]
[]
[]
[]
[]
[]
[]
[]
[]
[]
[]
[]
[]
[]
[]
[]
[]
[]
[]
[]
[]
[]
[]
[]
[]
[]
[]
[]
[]
[]
[]
[]
[]
[]
[]
[]
[]
[]
[]
[]
[]
[]
[]
[]
[]
[]
[]
[]
[]
[]
[]
[]
[]
[]
[]
[]
[]
[]
[]
[]
[]
[]
[]
[]
[]
[]
[]
[]
[]
[]
[]
[]
[]
[]
[]
[]
[]
[]
[]
[]
[]
[]
[]
[]
[]
[]
[]
[]
[]
[]
[]
[]
[]
[]
[]
[]
[]
[]
[]
[]
[]
[]
[]
[]
[]
[]
[]
[]
[]
[]
[]
[]
[]
[]
[]
[]
[]
[]
[]
[]
[]
[]
[]
[]
[]
[]
[]
[]
[]
[]
[]
[]
[]
[]
[]
[]
[]
[]
[]
[]
[]
[]
[]
[]
[]
[]
[]
[]
[]
[]
[]
[]
[]
[]
[]
[]
[]
[]
[]
[]
[]
[]
[]
[]
[]
[]
[]
[]
[]
[]
[]
[]
[]
[]
[]
[]
[]
[]
[]
[]
[]
[]
[]
[]
[]
[]
[]
[]
[]
[]
[]
[]
[]
[]
[]
[]
[]
[]
[]
[]
[]
[]
[]
[]
[]
[]
[]
[]
[]
[]
[]
[]
[]
[]
[]
[]
[]
[]
[]
[]
[]
[]
[]
[]
[]
[]
[]
[]
[]
[]
[]
[]
[]
[]
[]
[]
[]
[]
[]
[]
[]
[]
[]
[]
[]
[]
[]
[]
[]
[]
[]
[]
[]
[]
[]
[]
[]
[]
[]
[]
[]
[]
[]
[]
[]
[]
[]
[]
[]
[]
[]
[]
[]
[]
[]
[]
[]
[]
[]
[]
[]
[]
[]
[]
[]
[]
[]
[]
[]
[]
[]
[]
[]
[]
[]
[]
[]
[]
[]
[]
[]
[]
[]
[]
[]
[]
[]
[]
[]
[]
[]
[]
[]
[]
[]
[]
[]
[]
[]
[]
[]
[]
[]
[]
[]
[]
[]
[]
[]
[]
[]
[]
[]
[]
[]
[]
[]
[]
[]
[]
[]
[]
[]
[]
[]
[]
[]
[]
[]
[]
[]
[]
[]
[]
[]
[]
[]
[]
[]
[]
[]
[]
[]
[]
[]
[]
[]
[]
[]
[]
[]
[]
[]
[]
[]
[]
[]
[]
[]
[]
[]
[]
[]
[]
[]
[]
[]
[]
[]
[]
[]
[]
[]
[]
[]
[]
[]
[]
[]
[]
[]
[]
[]
[]
[]
[]
[]
[]
[]
[]
[]
[]
[]
[]
[]
[]
[]
[]
[]
[]
[]
[]
[]
[]
[]
[]
[]
[]
[]
[]
[]
[]
[]
[]
[null,null,"HL"]

{"sheet":"2. Service planning","index":2,"n_rows":221,"n_cols":208,"rows_kept":221,"cut":false,"hidden":false,"merged":[[3,8,3,9],[2,6,2,7],[2,10,2,11],[3,6,3,7],[2,14,3,16],[2,12,2,13],[3,12,3,13],[2,8,2,9],[3,10,3,11]]}
["DevFrame settings",null,"H","H",null,null,null,null,null,null,null,null,null,null,null,null,null,null,null,null,null,null,null,null,null,null,null,null,null,null,null,null,null,null,null,null,null,null,null,null,null,null,null,null,null,null,null,null,null,null,null,null,null,null,null,null,null,null,null,null,null,null,null,null,null,null,null,null,null,null,null,null,null,null,null,null,null,null,null,null,null,null,null,null,null,null,null,null,null,null,null,null,null,null,null,null,null,null,null,null,null,null,null,null,null,null,null,null,null,null,null,null,null,null,null,null,null,null,null,null,null,null,null,null,null,null,null,null,null,null,null,null,null,null,null,null,null,null,null,null,null,null,null,null,null,null,null,null,null,null,null,null,null,null,null,null,null,null,null,null,null,null,null,null,null,null,null,null,null,null,null,null,null,null,null,null,null,null,null,null,null,null,null,null,null,null,null,null,null,null,null,null,null,null,null,null,null,null,null,null,null,null,null,null,null,null,null,"HL"]
[]
["HiddenStatus","VISIBLE",null,null,null,{"$f":"\"Last reading odo (\" & Unit &\"):\"","v":"Last reading odo (km):"},null,null,"Last reading date:",null,null,null,"Current status:"]
["ProtectSheet",true,null,null,null,{"$f":"\"Projected today's odo (\" & Unit &\"):\"","v":"Projected today's odo (km):"},null,null,"Today's date:",null,{"$f":"TODAY()","v":"2022-10-10"}]
["HeadingsVisibility",false,null," "]
["GridlineVisibility",false,null,"✓"]
[null,null,null,null,null,null,"Service #1","Service #2","Service #3","Service #4","Service #5","Service #6","Service #7","Service #8","Service #9","Service #10","Service #11","Service #12","Service #13","Service #14","Service #15","Service #16","Service #17","Service #18","Service #19","Service #20","Service #21","Service #22","Service #23","Service #24","Service #25","Service #26","Service #27","Service #28","Service #29","Service #30","Service #31","Service #32","Service #33","Service #34","Service #35","Service #36","Service #37","Service #38","Service #39","Service #40","Service #41","Service #42","Service #43","Service #44","Service #45","Service #46","Service #47","Service #48","Service #49","Service #50","Service #51","Service #52","Service #53","Service #54","Service #55","Service #56","Service #57","Service #58","Service #59","Service #60","Service #61","Service #62","Service #63","Service #64","Service #65","Service #66","Service #67","Service #68","Service #69","Service #70","Service #71","Service #72","Service #73","Service #74","Service #75","Service #76","Service #77","Service #78","Service #79","Service #80","Service #81","Service #82","Service #83","Service #84","Service #85","Service #86","Service #87","Service #88","Service #89","Service #90","Service #91","Service #92","Service #93","Service #94","Service #95","Service #96","Service #97","Service #98","Service #99","Service #100","Service #101","Service #102","Service #103","Service #104","Service #105","Service #106","Service #107","Service #108","Service #109","Service #110","Service #111","Service #112","Service #113","Service #114","Service #115","Service #116","Service #117","Service #118","Service #119","Service #120","Service #121","Service #122","Service #123","Service #124","Service #125","Service #126","Service #127","Service #128","Service #129","Service #130","Service #131","Service #132","Service #133","Service #134","Service #135","Service #136","Service #137","Service #138","Service #139","Service #140","Service #141","Service #142","Service #143","Service #144","Service #145","Service #146","Service #147","Service #148","Service #149","Service #150","Service #151","Service #152","Service #153","Service #154","Service #155","Service #156","Service #157","Service #158","Service #159","Service #160","Service #161","Service #162","Service #163","Service #164","Service #165","Service #166","Service #167","Service #168","Service #169","Service #170","Service #171","Service #172","Service #173","Service #174","Service #175","Service #176","Service #177","Service #178","Service #179","Service #180","Service #181","Service #182","Service #183","Service #184","Service #185","Service #186","Service #187","Service #188","Service #189","Service #190","Service #191","Service #192","Service #193","Service #194","Service #195","Service #196","Service #197","Service #198","Service #199","Service #200"]
["Protection settings",null,null,null,null,"Estimated service date:"]
["DrawingObjects",true]
["Contents",true,null,null,null,"Service execution"]
["Scenarios",true,null,null,null,{"$f":"\"Service completed at \" & '1. Odo reading'!H7 & \":\"","v":"Service completed at km:"}]
["UserInterfaceOnly",true,null,null,null,"Service completed on date:"]
["AllowFormattingCells",false,null,null,null,"Notes:"]
["AllowFormattingColumns",false]
[null,null,null,null,null,"Service planning"]
["AllowFormattingRows",false,null,null,null,{"$f":"\"Service planned at \" & Unit & \":\"","v":"Service planned at km:"}]
["AllowInsertingColumns",false,null,null,null,"Service planned on date:"]
["AllowInsertingRows",false]
["AllowInsertingHyperlinks",false,null,null,null,"Service items"]
["AllowDeletingColumns",false,null,null,null,"[insert item here]"]
["AllowDeletingRows",false,null,null,null,"[insert item here]"]
["AllowSorting",false,null,null,null,"[insert item here]"]
["AllowFiltering",false,null,null,null,"[…]"]
["AllowUsingPivotTables",false]
["EnableSelection",true]
[]
["Other settings"]
["MarkProtectedCellsStatus",true]
["RowColumnDimensionStatus",false]
[]
[]
[]
["TableStart"]
["TableStartRow",{"$f":"ROW(TableStart)","v":7}]
["TableStartColumn",{"$f":"COLUMN(TableStart)","v":6}]
[]
[]
[]
[]
[]
[]
[]
[]
[]
[]
[]
[]
[]
[]
[]
[]
[]
[]
[]
[]
[]
[]
[]
[]
[]
[]
[]
[]
[]
[]
[]
[]
[]
[]
[]
[]
[]
[]
[]
[]
[]
[]
[]
[]
[]
[]
[]
[]
[]
[]
[]
[]
[]
[]
[]
[]
[]
[]
[]
[]
[]
[]
[]
[]
[]
[]
[]
[]
[]
[]
[]
[]
[]
[]
[]
[]
[]
[]
[]
[]
[]
[]
[]
[]
[]
[]
[]
[]
[]
[]
[]
[]
[]
[]
[]
[]
[]
[]
[]
[]
[]
[]
[]
[]
[]
[]
[]
[]
[]
[]
[]
[]
[]
[]
[]
[]
[]
[]
[]
[]
[]
[]
[]
[]
[]
[]
[]
[]
[]
[]
[]
[]
[]
[]
[]
[]
[]
[]
[]
[]
[]
[]
[]
[]
[]
[]
[]
[]
[]
[]
[]
[]
[]
[]
[]
[]
[]
[]
[]
[]
[]
[]
[]
[]
[]
[]
[]
[]
[]
[]
[]
[]
[]
[]
[]
[]
[]
[]
[]
[]
[]
[]
[]
[]
[]
[null,null,"HL"]

{"sheet":"3. Checklist","index":3,"n_rows":217,"n_cols":11,"rows_kept":217,"cut":false,"hidden":false,"merged":[[1,6,3,7],[9,6,9,8],[10,6,10,8],[11,6,11,8],[12,6,12,8],[5,6,5,8],[7,6,7,8],[6,6,6,8]]}
["DevFrame settings",null,"H","H",null,null,null,null,null,null,"HL"]
["HiddenStatus","VISIBLE",null,"Service #",null,null,"SERVICE CHECKLIST"]
["ProtectSheet",true,null,{"$f":"MATCH(ChecklistService,ServiceList,0)","v":1}]
["HeadingsVisibility",false]
["GridlineVisibility",false]
[null,null,null,null,null,"Registration plate:"]
["Protection settings",null,null,null,null,"Brand:"]
["DrawingObjects",false,null,null,null,"Model:"]
["Contents",true]
["Scenarios",true,null,null,null,"Service # :","Service #1"]
["UserInterfaceOnly",true,null,null,null,"Notes:"]
["AllowFormattingCells",true,null,null,null,{"$f":"\"Service \" & Unit & \":\"","v":"Service km:"}]
["AllowFormattingColumns",false,null,null,null,"Date:"]
["AllowFormattingRows",false]
["AllowInsertingColumns",false,null,null,null,"Service items","Included?","Done?","Notes"]
["AllowInsertingRows",false,null,null,null,{"$f":"IF('2. Service planning'!F20<>0,'2. Service planning'!F20,\"\")","v":"[insert item here]"},{"$f":"IF(OFFSET('2. Service planning'!F20,0,'3. Checklist'!$D$3)=\"✓\",\"✓\",\"\")","v":""}]
["AllowInsertingHyperlinks",false,null,null,null,{"$f":"IF('2. Service planning'!F21<>0,'2. Service planning'!F21,\"\")","v":"[insert item here]"},{"$f":"IF(OFFSET('2. Service planning'!F21,0,'3. Checklist'!$D$3)=\"✓\",\"✓\",\"\")","v":""}]
["AllowDeletingColumns",false,null,null,null,{"$f":"IF('2. Service planning'!F22<>0,'2. Service planning'!F22,\"\")","v":"[insert item here]"},{"$f":"IF(OFFSET('2. Service planning'!F22,0,'3. Checklist'!$D$3)=\"✓\",\"✓\",\"\")","v":""}]
["AllowDeletingRows",false,null,null,null,{"$f":"IF('2. Service planning'!F23<>0,'2. Service planning'!F23,\"\")","v":"[…]"},{"$f":"IF(OFFSET('2. Service planning'!F23,0,'3. Checklist'!$D$3)=\"✓\",\"✓\",\"\")","v":""}]
["AllowSorting",true,null,null,null,{"$f":"IF('2. Service planning'!F24<>0,'2. Service planning'!F24,\"\")","v":""},{"$f":"IF(OFFSET('2. Service planning'!F24,0,'3. Checklist'!$D$3)=\"✓\",\"✓\",\"\")","v":""}]
["AllowFiltering",true,null,null,null,{"$f":"IF('2. Service planning'!F25<>0,'2. Service planning'!F25,\"\")","v":""},{"$f":"IF(OFFSET('2. Service planning'!F25,0,'3. Checklist'!$D$3)=\"✓\",\"✓\",\"\")","v":""}]
["AllowUsingPivotTables",false,null,null,null,{"$f":"IF('2. Service planning'!F26<>0,'2. Service planning'!F26,\"\")","v":""},{"$f":"IF(OFFSET('2. Service planning'!F26,0,'3. Checklist'!$D$3)=\"✓\",\"✓\",\"\")","v":""}]
["EnableSelection",true,null,null,null,{"$f":"IF('2. Service planning'!F27<>0,'2. Service planning'!F27,\"\")","v":""},{"$f":"IF(OFFSET('2. Service planning'!F27,0,'3. Checklist'!$D$3)=\"✓\",\"✓\",\"\")","v":""}]
[null,null,null,null,null,{"$f":"IF('2. Service planning'!F28<>0,'2. Service planning'!F28,\"\")","v":""},{"$f":"IF(OFFSET('2. Service planning'!F28,0,'3. Checklist'!$D$3)=\"✓\",\"✓\",\"\")","v":""}]
["Other settings",null,null,null,null,{"$f":"IF('2. Service planning'!F29<>0,'2. Service planning'!F29,\"\")","v":""},{"$f":"IF(OFFSET('2. Service planning'!F29,0,'3. Checklist'!$D$3)=\"✓\",\"✓\",\"\")","v":""}]
["MarkProtectedCellsStatus",true,null,null,null,{"$f":"IF('2. Service planning'!F30<>0,'2. Service planning'!F30,\"\")","v":""},{"$f":"IF(OFFSET('2. Service planning'!F30,0,'3. Checklist'!$D$3)=\"✓\",\"✓\",\"\")","v":""}]
["RowColumnDimensionStatus",false,null,null,null,{"$f":"IF('2. Service planning'!F31<>0,'2. Service planning'!F31,\"\")","v":""},{"$f":"IF(OFFSET('2. Service planning'!F31,0,'3. Checklist'!$D$3)=\"✓\",\"✓\",\"\")","v":""}]
[null,null,null,null,null,{"$f":"IF('2. Service planning'!F32<>0,'2. Service planning'!F32,\"\")","v":""},{"$f":"IF(OFFSET('2. Service planning'!F32,0,'3. Checklist'!$D$3)=\"✓\",\"✓\",\"\")","v":""}]
[null,null,null,null,null,{"$f":"IF('2. Service planning'!F33<>0,'2. Service planning'!F33,\"\")","v":""},{"$f":"IF(OFFSET('2. Service planning'!F33,0,'3. Checklist'!$D$3)=\"✓\",\"✓\",\"\")","v":""}]
[null,null,null,null,null,{"$f":"IF('2. Service planning'!F34<>0,'2. Service planning'!F34,\"\")","v":""},{"$f":"IF(OFFSET('2. Service planning'!F34,0,'3. Checklist'!$D$3)=\"✓\",\"✓\",\"\")","v":""}]
["TableStart",null,null,null,null,{"$f":"IF('2. Service planning'!F35<>0,'2. Service planning'!F35,\"\")","v":""},{"$f":"IF(OFFSET('2. Service planning'!F35,0,'3. Checklist'!$D$3)=\"✓\",\"✓\",\"\")","v":""}]
["TableStartRow",{"$f":"ROW(TableStart)","v":10},null,null,null,{"$f":"IF('2. Service planning'!F36<>0,'2. Service planning'!F36,\"\")","v":""},{"$f":"IF(OFFSET('2. Service planning'!F36,0,'3. Checklist'!$D$3)=\"✓\",\"✓\",\"\")","v":""}]
["TableStartColumn",{"$f":"COLUMN(TableStart)","v":6},null,null,null,{"$f":"IF('2. Service planning'!F37<>0,'2. Service planning'!F37,\"\")","v":""},{"$f":"IF(OFFSET('2. Service planning'!F37,0,'3. Checklist'!$D$3)=\"✓\",\"✓\",\"\")","v":""}]
[null,null,null,null,null,{"$f":"IF('2. Service planning'!F38<>0,'2. Service planning'!F38,\"\")","v":""},{"$f":"IF(OFFSET('2. Service planning'!F38,0,'3. Checklist'!$D$3)=\"✓\",\"✓\",\"\")","v":""}]
[null,null,null,null,null,{"$f":"IF('2. Service planning'!F39<>0,'2. Service planning'!F39,\"\")","v":""},{"$f":"IF(OFFSET('2. Service planning'!F39,0,'3. Checklist'!$D$3)=\"✓\",\"✓\",\"\")","v":""}]
[null,null,null,null,null,{"$f":"IF('2. Service planning'!F40<>0,'2. Service planning'!F40,\"\")","v":""},{"$f":"IF(OFFSET('2. Service planning'!F40,0,'3. Checklist'!$D$3)=\"✓\",\"✓\",\"\")","v":""}]
[null,null,null,null,null,{"$f":"IF('2. Service planning'!F41<>0,'2. Service planning'!F41,\"\")","v":""},{"$f":"IF(OFFSET('2. Service planning'!F41,0,'3. Checklist'!$D$3)=\"✓\",\"✓\",\"\")","v":""}]
[null,null,null,null,null,{"$f":"IF('2. Service planning'!F42<>0,'2. Service planning'!F42,\"\")","v":""},{"$f":"IF(OFFSET('2. Service planning'!F42,0,'3. Checklist'!$D$3)=\"✓\",\"✓\",\"\")","v":""}]
[null,null,null,null,null,{"$f":"IF('2. Service planning'!F43<>0,'2. Service planning'!F43,\"\")","v":""},{"$f":"IF(OFFSET('2. Service planning'!F43,0,'3. Checklist'!$D$3)=\"✓\",\"✓\",\"\")","v":""}]
[null,null,null,null,null,{"$f":"IF('2. Service planning'!F44<>0,'2. Service planning'!F44,\"\")","v":""},{"$f":"IF(OFFSET('2. Service planning'!F44,0,'3. Checklist'!$D$3)=\"✓\",\"✓\",\"\")","v":""}]
[null,null,null,null,null,{"$f":"IF('2. Service planning'!F45<>0,'2. Service planning'!F45,\"\")","v":""},{"$f":"IF(OFFSET('2. Service planning'!F45,0,'3. Checklist'!$D$3)=\"✓\",\"✓\",\"\")","v":""}]
[null,null,null,null,null,{"$f":"IF('2. Service planning'!F46<>0,'2. Service planning'!F46,\"\")","v":""},{"$f":"IF(OFFSET('2. Service planning'!F46,0,'3. Checklist'!$D$3)=\"✓\",\"✓\",\"\")","v":""}]
[null,null,null,null,null,{"$f":"IF('2. Service planning'!F47<>0,'2. Service planning'!F47,\"\")","v":""},{"$f":"IF(OFFSET('2. Service planning'!F47,0,'3. Checklist'!$D$3)=\"✓\",\"✓\",\"\")","v":""}]
[null,null,null,null,null,{"$f":"IF('2. Service planning'!F48<>0,'2. Service planning'!F48,\"\")","v":""},{"$f":"IF(OFFSET('2. Service planning'!F48,0,'3. Checklist'!$D$3)=\"✓\",\"✓\",\"\")","v":""}]
[null,null,null,null,null,{"$f":"IF('2. Service planning'!F49<>0,'2. Service planning'!F49,\"\")","v":""},{"$f":"IF(OFFSET('2. Service planning'!F49,0,'3. Checklist'!$D$3)=\"✓\",\"✓\",\"\")","v":""}]
[null,null,null,null,null,{"$f":"IF('2. Service planning'!F50<>0,'2. Service planning'!F50,\"\")","v":""},{"$f":"IF(OFFSET('2. Service planning'!F50,0,'3. Checklist'!$D$3)=\"✓\",\"✓\",\"\")","v":""}]
[null,null,null,null,null,{"$f":"IF('2. Service planning'!F51<>0,'2. Service planning'!F51,\"\")","v":""},{"$f":"IF(OFFSET('2. Service planning'!F51,0,'3. Checklist'!$D$3)=\"✓\",\"✓\",\"\")","v":""}]
[null,null,null,null,null,{"$f":"IF('2. Service planning'!F52<>0,'2. Service planning'!F52,\"\")","v":""},{"$f":"IF(OFFSET('2. Service planning'!F52,0,'3. Checklist'!$D$3)=\"✓\",\"✓\",\"\")","v":""}]
[null,null,null,null,null,{"$f":"IF('2. Service planning'!F53<>0,'2. Service planning'!F53,\"\")","v":""},{"$f":"IF(OFFSET('2. Service planning'!F53,0,'3. Checklist'!$D$3)=\"✓\",\"✓\",\"\")","v":""}]
[null,null,null,null,null,{"$f":"IF('2. Service planning'!F54<>0,'2. Service planning'!F54,\"\")","v":""},{"$f":"IF(OFFSET('2. Service planning'!F54,0,'3. Checklist'!$D$3)=\"✓\",\"✓\",\"\")","v":""}]
[null,null,null,null,null,{"$f":"IF('2. Service planning'!F55<>0,'2. Service planning'!F55,\"\")","v":""},{"$f":"IF(OFFSET('2. Service planning'!F55,0,'3. Checklist'!$D$3)=\"✓\",\"✓\",\"\")","v":""}]
[null,null,null,null,null,{"$f":"IF('2. Service planning'!F56<>0,'2. Service planning'!F56,\"\")","v":""},{"$f":"IF(OFFSET('2. Service planning'!F56,0,'3. Checklist'!$D$3)=\"✓\",\"✓\",\"\")","v":""}]
[null,null,null,null,null,{"$f":"IF('2. Service planning'!F57<>0,'2. Service planning'!F57,\"\")","v":""},{"$f":"IF(OFFSET('2. Service planning'!F57,0,'3. Checklist'!$D$3)=\"✓\",\"✓\",\"\")","v":""}]
[null,null,null,null,null,{"$f":"IF('2. Service planning'!F58<>0,'2. Service planning'!F58,\"\")","v":""},{"$f":"IF(OFFSET('2. Service planning'!F58,0,'3. Checklist'!$D$3)=\"✓\",\"✓\",\"\")","v":""}]
[null,null,null,null,null,{"$f":"IF('2. Service planning'!F59<>0,'2. Service planning'!F59,\"\")","v":""},{"$f":"IF(OFFSET('2. Service planning'!F59,0,'3. Checklist'!$D$3)=\"✓\",\"✓\",\"\")","v":""}]
[null,null,null,null,null,{"$f":"IF('2. Service planning'!F60<>0,'2. Service planning'!F60,\"\")","v":""},{"$f":"IF(OFFSET('2. Service planning'!F60,0,'3. Checklist'!$D$3)=\"✓\",\"✓\",\"\")","v":""}]
[null,null,null,null,null,{"$f":"IF('2. Service planning'!F61<>0,'2. Service planning'!F61,\"\")","v":""},{"$f":"IF(OFFSET('2. Service planning'!F61,0,'3. Checklist'!$D$3)=\"✓\",\"✓\",\"\")","v":""}]
[null,null,null,null,null,{"$f":"IF('2. Service planning'!F62<>0,'2. Service planning'!F62,\"\")","v":""},{"$f":"IF(OFFSET('2. Service planning'!F62,0,'3. Checklist'!$D$3)=\"✓\",\"✓\",\"\")","v":""}]
[null,null,null,null,null,{"$f":"IF('2. Service planning'!F63<>0,'2. Service planning'!F63,\"\")","v":""},{"$f":"IF(OFFSET('2. Service planning'!F63,0,'3. Checklist'!$D$3)=\"✓\",\"✓\",\"\")","v":""}]
[null,null,null,null,null,{"$f":"IF('2. Service planning'!F64<>0,'2. Service planning'!F64,\"\")","v":""},{"$f":"IF(OFFSET('2. Service planning'!F64,0,'3. Checklist'!$D$3)=\"✓\",\"✓\",\"\")","v":""}]
[null,null,null,null,null,{"$f":"IF('2. Service planning'!F65<>0,'2. Service planning'!F65,\"\")","v":""},{"$f":"IF(OFFSET('2. Service planning'!F65,0,'3. Checklist'!$D$3)=\"✓\",\"✓\",\"\")","v":""}]
[null,null,null,null,null,{"$f":"IF('2. Service planning'!F66<>0,'2. Service planning'!F66,\"\")","v":""},{"$f":"IF(OFFSET('2. Service planning'!F66,0,'3. Checklist'!$D$3)=\"✓\",\"✓\",\"\")","v":""}]
[null,null,null,null,null,{"$f":"IF('2. Service planning'!F67<>0,'2. Service planning'!F67,\"\")","v":""},{"$f":"IF(OFFSET('2. Service planning'!F67,0,'3. Checklist'!$D$3)=\"✓\",\"✓\",\"\")","v":""}]
[null,null,null,null,null,{"$f":"IF('2. Service planning'!F68<>0,'2. Service planning'!F68,\"\")","v":""},{"$f":"IF(OFFSET('2. Service planning'!F68,0,'3. Checklist'!$D$3)=\"✓\",\"✓\",\"\")","v":""}]
[null,null,null,null,null,{"$f":"IF('2. Service planning'!F69<>0,'2. Service planning'!F69,\"\")","v":""},{"$f":"IF(OFFSET('2. Service planning'!F69,0,'3. Checklist'!$D$3)=\"✓\",\"✓\",\"\")","v":""}]
[null,null,null,null,null,{"$f":"IF('2. Service planning'!F70<>0,'2. Service planning'!F70,\"\")","v":""},{"$f":"IF(OFFSET('2. Service planning'!F70,0,'3. Checklist'!$D$3)=\"✓\",\"✓\",\"\")","v":""}]
[null,null,null,null,null,{"$f":"IF('2. Service planning'!F71<>0,'2. Service planning'!F71,\"\")","v":""},{"$f":"IF(OFFSET('2. Service planning'!F71,0,'3. Checklist'!$D$3)=\"✓\",\"✓\",\"\")","v":""}]
[null,null,null,null,null,{"$f":"IF('2. Service planning'!F72<>0,'2. Service planning'!F72,\"\")","v":""},{"$f":"IF(OFFSET('2. Service planning'!F72,0,'3. Checklist'!$D$3)=\"✓\",\"✓\",\"\")","v":""}]
[null,null,null,null,null,{"$f":"IF('2. Service planning'!F73<>0,'2. Service planning'!F73,\"\")","v":""},{"$f":"IF(OFFSET('2. Service planning'!F73,0,'3. Checklist'!$D$3)=\"✓\",\"✓\",\"\")","v":""}]
[null,null,null,null,null,{"$f":"IF('2. Service planning'!F74<>0,'2. Service planning'!F74,\"\")","v":""},{"$f":"IF(OFFSET('2. Service planning'!F74,0,'3. Checklist'!$D$3)=\"✓\",\"✓\",\"\")","v":""}]
[null,null,null,null,null,{"$f":"IF('2. Service planning'!F75<>0,'2. Service planning'!F75,\"\")","v":""},{"$f":"IF(OFFSET('2. Service planning'!F75,0,'3. Checklist'!$D$3)=\"✓\",\"✓\",\"\")","v":""}]
[null,null,null,null,null,{"$f":"IF('2. Service planning'!F76<>0,'2. Service planning'!F76,\"\")","v":""},{"$f":"IF(OFFSET('2. Service planning'!F76,0,'3. Checklist'!$D$3)=\"✓\",\"✓\",\"\")","v":""}]
[null,null,null,null,null,{"$f":"IF('2. Service planning'!F77<>0,'2. Service planning'!F77,\"\")","v":""},{"$f":"IF(OFFSET('2. Service planning'!F77,0,'3. Checklist'!$D$3)=\"✓\",\"✓\",\"\")","v":""}]
[null,null,null,null,null,{"$f":"IF('2. Service planning'!F78<>0,'2. Service planning'!F78,\"\")","v":""},{"$f":"IF(OFFSET('2. Service planning'!F78,0,'3. Checklist'!$D$3)=\"✓\",\"✓\",\"\")","v":""}]
[null,null,null,null,null,{"$f":"IF('2. Service planning'!F79<>0,'2. Service planning'!F79,\"\")","v":""},{"$f":"IF(OFFSET('2. Service planning'!F79,0,'3. Checklist'!$D$3)=\"✓\",\"✓\",\"\")","v":""}]
[null,null,null,null,null,{"$f":"IF('2. Service planning'!F80<>0,'2. Service planning'!F80,\"\")","v":""},{"$f":"IF(OFFSET('2. Service planning'!F80,0,'3. Checklist'!$D$3)=\"✓\",\"✓\",\"\")","v":""}]
[null,null,null,null,null,{"$f":"IF('2. Service planning'!F81<>0,'2. Service planning'!F81,\"\")","v":""},{"$f":"IF(OFFSET('2. Service planning'!F81,0,'3. Checklist'!$D$3)=\"✓\",\"✓\",\"\")","v":""}]
[null,null,null,null,null,{"$f":"IF('2. Service planning'!F82<>0,'2. Service planning'!F82,\"\")","v":""},{"$f":"IF(OFFSET('2. Service planning'!F82,0,'3. Checklist'!$D$3)=\"✓\",\"✓\",\"\")","v":""}]
[null,null,null,null,null,{"$f":"IF('2. Service planning'!F83<>0,'2. Service planning'!F83,\"\")","v":""},{"$f":"IF(OFFSET('2. Service planning'!F83,0,'3. Checklist'!$D$3)=\"✓\",\"✓\",\"\")","v":""}]
[null,null,null,null,null,{"$f":"IF('2. Service planning'!F84<>0,'2. Service planning'!F84,\"\")","v":""},{"$f":"IF(OFFSET('2. Service planning'!F84,0,'3. Checklist'!$D$3)=\"✓\",\"✓\",\"\")","v":""}]
[null,null,null,null,null,{"$f":"IF('2. Service planning'!F85<>0,'2. Service planning'!F85,\"\")","v":""},{"$f":"IF(OFFSET('2. Service planning'!F85,0,'3. Checklist'!$D$3)=\"✓\",\"✓\",\"\")","v":""}]
[null,null,null,null,null,{"$f":"IF('2. Service planning'!F86<>0,'2. Service planning'!F86,\"\")","v":""},{"$f":"IF(OFFSET('2. Service planning'!F86,0,'3. Checklist'!$D$3)=\"✓\",\"✓\",\"\")","v":""}]
[null,null,null,null,null,{"$f":"IF('2. Service planning'!F87<>0,'2. Service planning'!F87,\"\")","v":""},{"$f":"IF(OFFSET('2. Service planning'!F87,0,'3. Checklist'!$D$3)=\"✓\",\"✓\",\"\")","v":""}]
[null,null,null,null,null,{"$f":"IF('2. Service planning'!F88<>0,'2. Service planning'!F88,\"\")","v":""},{"$f":"IF(OFFSET('2. Service planning'!F88,0,'3. Checklist'!$D$3)=\"✓\",\"✓\",\"\")","v":""}]
[null,null,null,null,null,{"$f":"IF('2. Service planning'!F89<>0,'2. Service planning'!F89,\"\")","v":""},{"$f":"IF(OFFSET('2. Service planning'!F89,0,'3. Checklist'!$D$3)=\"✓\",\"✓\",\"\")","v":""}]
[null,null,null,null,null,{"$f":"IF('2. Service planning'!F90<>0,'2. Service planning'!F90,\"\")","v":""},{"$f":"IF(OFFSET('2. Service planning'!F90,0,'3. Checklist'!$D$3)=\"✓\",\"✓\",\"\")","v":""}]
[null,null,null,null,null,{"$f":"IF('2. Service planning'!F91<>0,'2. Service planning'!F91,\"\")","v":""},{"$f":"IF(OFFSET('2. Service planning'!F91,0,'3. Checklist'!$D$3)=\"✓\",\"✓\",\"\")","v":""}]
[null,null,null,null,null,{"$f":"IF('2. Service planning'!F92<>0,'2. Service planning'!F92,\"\")","v":""},{"$f":"IF(OFFSET('2. Service planning'!F92,0,'3. Checklist'!$D$3)=\"✓\",\"✓\",\"\")","v":""}]
[null,null,null,null,null,{"$f":"IF('2. Service planning'!F93<>0,'2. Service planning'!F93,\"\")","v":""},{"$f":"IF(OFFSET('2. Service planning'!F93,0,'3. Checklist'!$D$3)=\"✓\",\"✓\",\"\")","v":""}]
[null,null,null,null,null,{"$f":"IF('2. Service planning'!F94<>0,'2. Service planning'!F94,\"\")","v":""},{"$f":"IF(OFFSET('2. Service planning'!F94,0,'3. Checklist'!$D$3)=\"✓\",\"✓\",\"\")","v":""}]
[null,null,null,null,null,{"$f":"IF('2. Service planning'!F95<>0,'2. Service planning'!F95,\"\")","v":""},{"$f":"IF(OFFSET('2. Service planning'!F95,0,'3. Checklist'!$D$3)=\"✓\",\"✓\",\"\")","v":""}]
[null,null,null,null,null,{"$f":"IF('2. Service planning'!F96<>0,'2. Service planning'!F96,\"\")","v":""},{"$f":"IF(OFFSET('2. Service planning'!F96,0,'3. Checklist'!$D$3)=\"✓\",\"✓\",\"\")","v":""}]
[null,null,null,null,null,{"$f":"IF('2. Service planning'!F97<>0,'2. Service planning'!F97,\"\")","v":""},{"$f":"IF(OFFSET('2. Service planning'!F97,0,'3. Checklist'!$D$3)=\"✓\",\"✓\",\"\")","v":""}]
[null,null,null,null,null,{"$f":"IF('2. Service planning'!F98<>0,'2. Service planning'!F98,\"\")","v":""},{"$f":"IF(OFFSET('2. Service planning'!F98,0,'3. Checklist'!$D$3)=\"✓\",\"✓\",\"\")","v":""}]
[null,null,null,null,null,{"$f":"IF('2. Service planning'!F99<>0,'2. Service planning'!F99,\"\")","v":""},{"$f":"IF(OFFSET('2. Service planning'!F99,0,'3. Checklist'!$D$3)=\"✓\",\"✓\",\"\")","v":""}]
[null,null,null,null,null,{"$f":"IF('2. Service planning'!F100<>0,'2. Service planning'!F100,\"\")","v":""},{"$f":"IF(OFFSET('2. Service planning'!F100,0,'3. Checklist'!$D$3)=\"✓\",\"✓\",\"\")","v":""}]
[null,null,null,null,null,{"$f":"IF('2. Service planning'!F101<>0,'2. Service planning'!F101,\"\")","v":""},{"$f":"IF(OFFSET('2. Service planning'!F101,0,'3. Checklist'!$D$3)=\"✓\",\"✓\",\"\")","v":""}]
[null,null,null,null,null,{"$f":"IF('2. Service planning'!F102<>0,'2. Service planning'!F102,\"\")","v":""},{"$f":"IF(OFFSET('2. Service planning'!F102,0,'3. Checklist'!$D$3)=\"✓\",\"✓\",\"\")","v":""}]
[null,null,null,null,null,{"$f":"IF('2. Service planning'!F103<>0,'2. Service planning'!F103,\"\")","v":""},{"$f":"IF(OFFSET('2. Service planning'!F103,0,'3. Checklist'!$D$3)=\"✓\",\"✓\",\"\")","v":""}]
[null,null,null,null,null,{"$f":"IF('2. Service planning'!F104<>0,'2. Service planning'!F104,\"\")","v":""},{"$f":"IF(OFFSET('2. Service planning'!F104,0,'3. Checklist'!$D$3)=\"✓\",\"✓\",\"\")","v":""}]
[null,null,null,null,null,{"$f":"IF('2. Service planning'!F105<>0,'2. Service planning'!F105,\"\")","v":""},{"$f":"IF(OFFSET('2. Service planning'!F105,0,'3. Checklist'!$D$3)=\"✓\",\"✓\",\"\")","v":""}]
[null,null,null,null,null,{"$f":"IF('2. Service planning'!F106<>0,'2. Service planning'!F106,\"\")","v":""},{"$f":"IF(OFFSET('2. Service planning'!F106,0,'3. Checklist'!$D$3)=\"✓\",\"✓\",\"\")","v":""}]
[null,null,null,null,null,{"$f":"IF('2. Service planning'!F107<>0,'2. Service planning'!F107,\"\")","v":""},{"$f":"IF(OFFSET('2. Service planning'!F107,0,'3. Checklist'!$D$3)=\"✓\",\"✓\",\"\")","v":""}]
[null,null,null,null,null,{"$f":"IF('2. Service planning'!F108<>0,'2. Service planning'!F108,\"\")","v":""},{"$f":"IF(OFFSET('2. Service planning'!F108,0,'3. Checklist'!$D$3)=\"✓\",\"✓\",\"\")","v":""}]
[null,null,null,null,null,{"$f":"IF('2. Service planning'!F109<>0,'2. Service planning'!F109,\"\")","v":""},{"$f":"IF(OFFSET('2. Service planning'!F109,0,'3. Checklist'!$D$3)=\"✓\",\"✓\",\"\")","v":""}]
[null,null,null,null,null,{"$f":"IF('2. Service planning'!F110<>0,'2. Service planning'!F110,\"\")","v":""},{"$f":"IF(OFFSET('2. Service planning'!F110,0,'3. Checklist'!$D$3)=\"✓\",\"✓\",\"\")","v":""}]
[null,null,null,null,null,{"$f":"IF('2. Service planning'!F111<>0,'2. Service planning'!F111,\"\")","v":""},{"$f":"IF(OFFSET('2. Service planning'!F111,0,'3. Checklist'!$D$3)=\"✓\",\"✓\",\"\")","v":""}]
[null,null,null,null,null,{"$f":"IF('2. Service planning'!F112<>0,'2. Service planning'!F112,\"\")","v":""},{"$f":"IF(OFFSET('2. Service planning'!F112,0,'3. Checklist'!$D$3)=\"✓\",\"✓\",\"\")","v":""}]
[null,null,null,null,null,{"$f":"IF('2. Service planning'!F113<>0,'2. Service planning'!F113,\"\")","v":""},{"$f":"IF(OFFSET('2. Service planning'!F113,0,'3. Checklist'!$D$3)=\"✓\",\"✓\",\"\")","v":""}]
[null,null,null,null,null,{"$f":"IF('2. Service planning'!F114<>0,'2. Service planning'!F114,\"\")","v":""},{"$f":"IF(OFFSET('2. Service planning'!F114,0,'3. Checklist'!$D$3)=\"✓\",\"✓\",\"\")","v":""}]
[null,null,null,null,null,{"$f":"IF('2. Service planning'!F115<>0,'2. Service planning'!F115,\"\")","v":""},{"$f":"IF(OFFSET('2. Service planning'!F115,0,'3. Checklist'!$D$3)=\"✓\",\"✓\",\"\")","v":""}]
[null,null,null,null,null,{"$f":"IF('2. Service planning'!F116<>0,'2. Service planning'!F116,\"\")","v":""},{"$f":"IF(OFFSET('2. Service planning'!F116,0,'3. Checklist'!$D$3)=\"✓\",\"✓\",\"\")","v":""}]
[null,null,null,null,null,{"$f":"IF('2. Service planning'!F117<>0,'2. Service planning'!F117,\"\")","v":""},{"$f":"IF(OFFSET('2. Service planning'!F117,0,'3. Checklist'!$D$3)=\"✓\",\"✓\",\"\")","v":""}]
[null,null,null,null,null,{"$f":"IF('2. Service planning'!F118<>0,'2. Service planning'!F118,\"\")","v":""},{"$f":"IF(OFFSET('2. Service planning'!F118,0,'3. Checklist'!$D$3)=\"✓\",\"✓\",\"\")","v":""}]
[null,null,null,null,null,{"$f":"IF('2. Service planning'!F119<>0,'2. Service planning'!F119,\"\")","v":""},{"$f":"IF(OFFSET('2. Service planning'!F119,0,'3. Checklist'!$D$3)=\"✓\",\"✓\",\"\")","v":""}]
[null,null,null,null,null,{"$f":"IF('2. Service planning'!F120<>0,'2. Service planning'!F120,\"\")","v":""},{"$f":"IF(OFFSET('2. Service planning'!F120,0,'3. Checklist'!$D$3)=\"✓\",\"✓\",\"\")","v":""}]
[null,null,null,null,null,{"$f":"IF('2. Service planning'!F121<>0,'2. Service planning'!F121,\"\")","v":""},{"$f":"IF(OFFSET('2. Service planning'!F121,0,'3. Checklist'!$D$3)=\"✓\",\"✓\",\"\")","v":""}]
[null,null,null,null,null,{"$f":"IF('2. Service planning'!F122<>0,'2. Service planning'!F122,\"\")","v":""},{"$f":"IF(OFFSET('2. Service planning'!F122,0,'3. Checklist'!$D$3)=\"✓\",\"✓\",\"\")","v":""}]
[null,null,null,null,null,{"$f":"IF('2. Service planning'!F123<>0,'2. Service planning'!F123,\"\")","v":""},{"$f":"IF(OFFSET('2. Service planning'!F123,0,'3. Checklist'!$D$3)=\"✓\",\"✓\",\"\")","v":""}]
[null,null,null,null,null,{"$f":"IF('2. Service planning'!F124<>0,'2. Service planning'!F124,\"\")","v":""},{"$f":"IF(OFFSET('2. Service planning'!F124,0,'3. Checklist'!$D$3)=\"✓\",\"✓\",\"\")","v":""}]
[null,null,null,null,null,{"$f":"IF('2. Service planning'!F125<>0,'2. Service planning'!F125,\"\")","v":""},{"$f":"IF(OFFSET('2. Service planning'!F125,0,'3. Checklist'!$D$3)=\"✓\",\"✓\",\"\")","v":""}]
[null,null,null,null,null,{"$f":"IF('2. Service planning'!F126<>0,'2. Service planning'!F126,\"\")","v":""},{"$f":"IF(OFFSET('2. Service planning'!F126,0,'3. Checklist'!$D$3)=\"✓\",\"✓\",\"\")","v":""}]
[null,null,null,null,null,{"$f":"IF('2. Service planning'!F127<>0,'2. Service planning'!F127,\"\")","v":""},{"$f":"IF(OFFSET('2. Service planning'!F127,0,'3. Checklist'!$D$3)=\"✓\",\"✓\",\"\")","v":""}]
[null,null,null,null,null,{"$f":"IF('2. Service planning'!F128<>0,'2. Service planning'!F128,\"\")","v":""},{"$f":"IF(OFFSET('2. Service planning'!F128,0,'3. Checklist'!$D$3)=\"✓\",\"✓\",\"\")","v":""}]
[null,null,null,null,null,{"$f":"IF('2. Service planning'!F129<>0,'2. Service planning'!F129,\"\")","v":""},{"$f":"IF(OFFSET('2. Service planning'!F129,0,'3. Checklist'!$D$3)=\"✓\",\"✓\",\"\")","v":""}]
[null,null,null,null,null,{"$f":"IF('2. Service planning'!F130<>0,'2. Service planning'!F130,\"\")","v":""},{"$f":"IF(OFFSET('2. Service planning'!F130,0,'3. Checklist'!$D$3)=\"✓\",\"✓\",\"\")","v":""}]
[null,null,null,null,null,{"$f":"IF('2. Service planning'!F131<>0,'2. Service planning'!F131,\"\")","v":""},{"$f":"IF(OFFSET('2. Service planning'!F131,0,'3. Checklist'!$D$3)=\"✓\",\"✓\",\"\")","v":""}]
[null,null,null,null,null,{"$f":"IF('2. Service planning'!F132<>0,'2. Service planning'!F132,\"\")","v":""},{"$f":"IF(OFFSET('2. Service planning'!F132,0,'3. Checklist'!$D$3)=\"✓\",\"✓\",\"\")","v":""}]
[null,null,null,null,null,{"$f":"IF('2. Service planning'!F133<>0,'2. Service planning'!F133,\"\")","v":""},{"$f":"IF(OFFSET('2. Service planning'!F133,0,'3. Checklist'!$D$3)=\"✓\",\"✓\",\"\")","v":""}]
[null,null,null,null,null,{"$f":"IF('2. Service planning'!F134<>0,'2. Service planning'!F134,\"\")","v":""},{"$f":"IF(OFFSET('2. Service planning'!F134,0,'3. Checklist'!$D$3)=\"✓\",\"✓\",\"\")","v":""}]
[null,null,null,null,null,{"$f":"IF('2. Service planning'!F135<>0,'2. Service planning'!F135,\"\")","v":""},{"$f":"IF(OFFSET('2. Service planning'!F135,0,'3. Checklist'!$D$3)=\"✓\",\"✓\",\"\")","v":""}]
[null,null,null,null,null,{"$f":"IF('2. Service planning'!F136<>0,'2. Service planning'!F136,\"\")","v":""},{"$f":"IF(OFFSET('2. Service planning'!F136,0,'3. Checklist'!$D$3)=\"✓\",\"✓\",\"\")","v":""}]
[null,null,null,null,null,{"$f":"IF('2. Service planning'!F137<>0,'2. Service planning'!F137,\"\")","v":""},{"$f":"IF(OFFSET('2. Service planning'!F137,0,'3. Checklist'!$D$3)=\"✓\",\"✓\",\"\")","v":""}]
[null,null,null,null,null,{"$f":"IF('2. Service planning'!F138<>0,'2. Service planning'!F138,\"\")","v":""},{"$f":"IF(OFFSET('2. Service planning'!F138,0,'3. Checklist'!$D$3)=\"✓\",\"✓\",\"\")","v":""}]
[null,null,null,null,null,{"$f":"IF('2. Service planning'!F139<>0,'2. Service planning'!F139,\"\")","v":""},{"$f":"IF(OFFSET('2. Service planning'!F139,0,'3. Checklist'!$D$3)=\"✓\",\"✓\",\"\")","v":""}]
[null,null,null,null,null,{"$f":"IF('2. Service planning'!F140<>0,'2. Service planning'!F140,\"\")","v":""},{"$f":"IF(OFFSET('2. Service planning'!F140,0,'3. Checklist'!$D$3)=\"✓\",\"✓\",\"\")","v":""}]
[null,null,null,null,null,{"$f":"IF('2. Service planning'!F141<>0,'2. Service planning'!F141,\"\")","v":""},{"$f":"IF(OFFSET('2. Service planning'!F141,0,'3. Checklist'!$D$3)=\"✓\",\"✓\",\"\")","v":""}]
[null,null,null,null,null,{"$f":"IF('2. Service planning'!F142<>0,'2. Service planning'!F142,\"\")","v":""},{"$f":"IF(OFFSET('2. Service planning'!F142,0,'3. Checklist'!$D$3)=\"✓\",\"✓\",\"\")","v":""}]
[null,null,null,null,null,{"$f":"IF('2. Service planning'!F143<>0,'2. Service planning'!F143,\"\")","v":""},{"$f":"IF(OFFSET('2. Service planning'!F143,0,'3. Checklist'!$D$3)=\"✓\",\"✓\",\"\")","v":""}]
[null,null,null,null,null,{"$f":"IF('2. Service planning'!F144<>0,'2. Service planning'!F144,\"\")","v":""},{"$f":"IF(OFFSET('2. Service planning'!F144,0,'3. Checklist'!$D$3)=\"✓\",\"✓\",\"\")","v":""}]
[null,null,null,null,null,{"$f":"IF('2. Service planning'!F145<>0,'2. Service planning'!F145,\"\")","v":""},{"$f":"IF(OFFSET('2. Service planning'!F145,0,'3. Checklist'!$D$3)=\"✓\",\"✓\",\"\")","v":""}]
[null,null,null,null,null,{"$f":"IF('2. Service planning'!F146<>0,'2. Service planning'!F146,\"\")","v":""},{"$f":"IF(OFFSET('2. Service planning'!F146,0,'3. Checklist'!$D$3)=\"✓\",\"✓\",\"\")","v":""}]
[null,null,null,null,null,{"$f":"IF('2. Service planning'!F147<>0,'2. Service planning'!F147,\"\")","v":""},{"$f":"IF(OFFSET('2. Service planning'!F147,0,'3. Checklist'!$D$3)=\"✓\",\"✓\",\"\")","v":""}]
[null,null,null,null,null,{"$f":"IF('2. Service planning'!F148<>0,'2. Service planning'!F148,\"\")","v":""},{"$f":"IF(OFFSET('2. Service planning'!F148,0,'3. Checklist'!$D$3)=\"✓\",\"✓\",\"\")","v":""}]
[null,null,null,null,null,{"$f":"IF('2. Service planning'!F149<>0,'2. Service planning'!F149,\"\")","v":""},{"$f":"IF(OFFSET('2. Service planning'!F149,0,'3. Checklist'!$D$3)=\"✓\",\"✓\",\"\")","v":""}]
[null,null,null,null,null,{"$f":"IF('2. Service planning'!F150<>0,'2. Service planning'!F150,\"\")","v":""},{"$f":"IF(OFFSET('2. Service planning'!F150,0,'3. Checklist'!$D$3)=\"✓\",\"✓\",\"\")","v":""}]
[null,null,null,null,null,{"$f":"IF('2. Service planning'!F151<>0,'2. Service planning'!F151,\"\")","v":""},{"$f":"IF(OFFSET('2. Service planning'!F151,0,'3. Checklist'!$D$3)=\"✓\",\"✓\",\"\")","v":""}]
[null,null,null,null,null,{"$f":"IF('2. Service planning'!F152<>0,'2. Service planning'!F152,\"\")","v":""},{"$f":"IF(OFFSET('2. Service planning'!F152,0,'3. Checklist'!$D$3)=\"✓\",\"✓\",\"\")","v":""}]
[null,null,null,null,null,{"$f":"IF('2. Service planning'!F153<>0,'2. Service planning'!F153,\"\")","v":""},{"$f":"IF(OFFSET('2. Service planning'!F153,0,'3. Checklist'!$D$3)=\"✓\",\"✓\",\"\")","v":""}]
[null,null,null,null,null,{"$f":"IF('2. Service planning'!F154<>0,'2. Service planning'!F154,\"\")","v":""},{"$f":"IF(OFFSET('2. Service planning'!F154,0,'3. Checklist'!$D$3)=\"✓\",\"✓\",\"\")","v":""}]
[null,null,null,null,null,{"$f":"IF('2. Service planning'!F155<>0,'2. Service planning'!F155,\"\")","v":""},{"$f":"IF(OFFSET('2. Service planning'!F155,0,'3. Checklist'!$D$3)=\"✓\",\"✓\",\"\")","v":""}]
[null,null,null,null,null,{"$f":"IF('2. Service planning'!F156<>0,'2. Service planning'!F156,\"\")","v":""},{"$f":"IF(OFFSET('2. Service planning'!F156,0,'3. Checklist'!$D$3)=\"✓\",\"✓\",\"\")","v":""}]
[null,null,null,null,null,{"$f":"IF('2. Service planning'!F157<>0,'2. Service planning'!F157,\"\")","v":""},{"$f":"IF(OFFSET('2. Service planning'!F157,0,'3. Checklist'!$D$3)=\"✓\",\"✓\",\"\")","v":""}]
[null,null,null,null,null,{"$f":"IF('2. Service planning'!F158<>0,'2. Service planning'!F158,\"\")","v":""},{"$f":"IF(OFFSET('2. Service planning'!F158,0,'3. Checklist'!$D$3)=\"✓\",\"✓\",\"\")","v":""}]
[null,null,null,null,null,{"$f":"IF('2. Service planning'!F159<>0,'2. Service planning'!F159,\"\")","v":""},{"$f":"IF(OFFSET('2. Service planning'!F159,0,'3. Checklist'!$D$3)=\"✓\",\"✓\",\"\")","v":""}]
[null,null,null,null,null,{"$f":"IF('2. Service planning'!F160<>0,'2. Service planning'!F160,\"\")","v":""},{"$f":"IF(OFFSET('2. Service planning'!F160,0,'3. Checklist'!$D$3)=\"✓\",\"✓\",\"\")","v":""}]
[null,null,null,null,null,{"$f":"IF('2. Service planning'!F161<>0,'2. Service planning'!F161,\"\")","v":""},{"$f":"IF(OFFSET('2. Service planning'!F161,0,'3. Checklist'!$D$3)=\"✓\",\"✓\",\"\")","v":""}]
[null,null,null,null,null,{"$f":"IF('2. Service planning'!F162<>0,'2. Service planning'!F162,\"\")","v":""},{"$f":"IF(OFFSET('2. Service planning'!F162,0,'3. Checklist'!$D$3)=\"✓\",\"✓\",\"\")","v":""}]
[null,null,null,null,null,{"$f":"IF('2. Service planning'!F163<>0,'2. Service planning'!F163,\"\")","v":""},{"$f":"IF(OFFSET('2. Service planning'!F163,0,'3. Checklist'!$D$3)=\"✓\",\"✓\",\"\")","v":""}]
[null,null,null,null,null,{"$f":"IF('2. Service planning'!F164<>0,'2. Service planning'!F164,\"\")","v":""},{"$f":"IF(OFFSET('2. Service planning'!F164,0,'3. Checklist'!$D$3)=\"✓\",\"✓\",\"\")","v":""}]
[null,null,null,null,null,{"$f":"IF('2. Service planning'!F165<>0,'2. Service planning'!F165,\"\")","v":""},{"$f":"IF(OFFSET('2. Service planning'!F165,0,'3. Checklist'!$D$3)=\"✓\",\"✓\",\"\")","v":""}]
[null,null,null,null,null,{"$f":"IF('2. Service planning'!F166<>0,'2. Service planning'!F166,\"\")","v":""},{"$f":"IF(OFFSET('2. Service planning'!F166,0,'3. Checklist'!$D$3)=\"✓\",\"✓\",\"\")","v":""}]
[null,null,null,null,null,{"$f":"IF('2. Service planning'!F167<>0,'2. Service planning'!F167,\"\")","v":""},{"$f":"IF(OFFSET('2. Service planning'!F167,0,'3. Checklist'!$D$3)=\"✓\",\"✓\",\"\")","v":""}]
[null,null,null,null,null,{"$f":"IF('2. Service planning'!F168<>0,'2. Service planning'!F168,\"\")","v":""},{"$f":"IF(OFFSET('2. Service planning'!F168,0,'3. Checklist'!$D$3)=\"✓\",\"✓\",\"\")","v":""}]
[null,null,null,null,null,{"$f":"IF('2. Service planning'!F169<>0,'2. Service planning'!F169,\"\")","v":""},{"$f":"IF(OFFSET('2. Service planning'!F169,0,'3. Checklist'!$D$3)=\"✓\",\"✓\",\"\")","v":""}]
[null,null,null,null,null,{"$f":"IF('2. Service planning'!F170<>0,'2. Service planning'!F170,\"\")","v":""},{"$f":"IF(OFFSET('2. Service planning'!F170,0,'3. Checklist'!$D$3)=\"✓\",\"✓\",\"\")","v":""}]
[null,null,null,null,null,{"$f":"IF('2. Service planning'!F171<>0,'2. Service planning'!F171,\"\")","v":""},{"$f":"IF(OFFSET('2. Service planning'!F171,0,'3. Checklist'!$D$3)=\"✓\",\"✓\",\"\")","v":""}]
[null,null,null,null,null,{"$f":"IF('2. Service planning'!F172<>0,'2. Service planning'!F172,\"\")","v":""},{"$f":"IF(OFFSET('2. Service planning'!F172,0,'3. Checklist'!$D$3)=\"✓\",\"✓\",\"\")","v":""}]
[null,null,null,null,null,{"$f":"IF('2. Service planning'!F173<>0,'2. Service planning'!F173,\"\")","v":""},{"$f":"IF(OFFSET('2. Service planning'!F173,0,'3. Checklist'!$D$3)=\"✓\",\"✓\",\"\")","v":""}]
[null,null,null,null,null,{"$f":"IF('2. Service planning'!F174<>0,'2. Service planning'!F174,\"\")","v":""},{"$f":"IF(OFFSET('2. Service planning'!F174,0,'3. Checklist'!$D$3)=\"✓\",\"✓\",\"\")","v":""}]
[null,null,null,null,null,{"$f":"IF('2. Service planning'!F175<>0,'2. Service planning'!F175,\"\")","v":""},{"$f":"IF(OFFSET('2. Service planning'!F175,0,'3. Checklist'!$D$3)=\"✓\",\"✓\",\"\")","v":""}]
[null,null,null,null,null,{"$f":"IF('2. Service planning'!F176<>0,'2. Service planning'!F176,\"\")","v":""},{"$f":"IF(OFFSET('2. Service planning'!F176,0,'3. Checklist'!$D$3)=\"✓\",\"✓\",\"\")","v":""}]
[null,null,null,null,null,{"$f":"IF('2. Service planning'!F177<>0,'2. Service planning'!F177,\"\")","v":""},{"$f":"IF(OFFSET('2. Service planning'!F177,0,'3. Checklist'!$D$3)=\"✓\",\"✓\",\"\")","v":""}]
[null,null,null,null,null,{"$f":"IF('2. Service planning'!F178<>0,'2. Service planning'!F178,\"\")","v":""},{"$f":"IF(OFFSET('2. Service planning'!F178,0,'3. Checklist'!$D$3)=\"✓\",\"✓\",\"\")","v":""}]
[null,null,null,null,null,{"$f":"IF('2. Service planning'!F179<>0,'2. Service planning'!F179,\"\")","v":""},{"$f":"IF(OFFSET('2. Service planning'!F179,0,'3. Checklist'!$D$3)=\"✓\",\"✓\",\"\")","v":""}]
[null,null,null,null,null,{"$f":"IF('2. Service planning'!F180<>0,'2. Service planning'!F180,\"\")","v":""},{"$f":"IF(OFFSET('2. Service planning'!F180,0,'3. Checklist'!$D$3)=\"✓\",\"✓\",\"\")","v":""}]
[null,null,null,null,null,{"$f":"IF('2. Service planning'!F181<>0,'2. Service planning'!F181,\"\")","v":""},{"$f":"IF(OFFSET('2. Service planning'!F181,0,'3. Checklist'!$D$3)=\"✓\",\"✓\",\"\")","v":""}]
[null,null,null,null,null,{"$f":"IF('2. Service planning'!F182<>0,'2. Service planning'!F182,\"\")","v":""},{"$f":"IF(OFFSET('2. Service planning'!F182,0,'3. Checklist'!$D$3)=\"✓\",\"✓\",\"\")","v":""}]
[null,null,null,null,null,{"$f":"IF('2. Service planning'!F183<>0,'2. Service planning'!F183,\"\")","v":""},{"$f":"IF(OFFSET('2. Service planning'!F183,0,'3. Checklist'!$D$3)=\"✓\",\"✓\",\"\")","v":""}]
[null,null,null,null,null,{"$f":"IF('2. Service planning'!F184<>0,'2. Service planning'!F184,\"\")","v":""},{"$f":"IF(OFFSET('2. Service planning'!F184,0,'3. Checklist'!$D$3)=\"✓\",\"✓\",\"\")","v":""}]
[null,null,null,null,null,{"$f":"IF('2. Service planning'!F185<>0,'2. Service planning'!F185,\"\")","v":""},{"$f":"IF(OFFSET('2. Service planning'!F185,0,'3. Checklist'!$D$3)=\"✓\",\"✓\",\"\")","v":""}]
[null,null,null,null,null,{"$f":"IF('2. Service planning'!F186<>0,'2. Service planning'!F186,\"\")","v":""},{"$f":"IF(OFFSET('2. Service planning'!F186,0,'3. Checklist'!$D$3)=\"✓\",\"✓\",\"\")","v":""}]
[null,null,null,null,null,{"$f":"IF('2. Service planning'!F187<>0,'2. Service planning'!F187,\"\")","v":""},{"$f":"IF(OFFSET('2. Service planning'!F187,0,'3. Checklist'!$D$3)=\"✓\",\"✓\",\"\")","v":""}]
[null,null,null,null,null,{"$f":"IF('2. Service planning'!F188<>0,'2. Service planning'!F188,\"\")","v":""},{"$f":"IF(OFFSET('2. Service planning'!F188,0,'3. Checklist'!$D$3)=\"✓\",\"✓\",\"\")","v":""}]
[null,null,null,null,null,{"$f":"IF('2. Service planning'!F189<>0,'2. Service planning'!F189,\"\")","v":""},{"$f":"IF(OFFSET('2. Service planning'!F189,0,'3. Checklist'!$D$3)=\"✓\",\"✓\",\"\")","v":""}]
[null,null,null,null,null,{"$f":"IF('2. Service planning'!F190<>0,'2. Service planning'!F190,\"\")","v":""},{"$f":"IF(OFFSET('2. Service planning'!F190,0,'3. Checklist'!$D$3)=\"✓\",\"✓\",\"\")","v":""}]
[null,null,null,null,null,{"$f":"IF('2. Service planning'!F191<>0,'2. Service planning'!F191,\"\")","v":""},{"$f":"IF(OFFSET('2. Service planning'!F191,0,'3. Checklist'!$D$3)=\"✓\",\"✓\",\"\")","v":""}]
[null,null,null,null,null,{"$f":"IF('2. Service planning'!F192<>0,'2. Service planning'!F192,\"\")","v":""},{"$f":"IF(OFFSET('2. Service planning'!F192,0,'3. Checklist'!$D$3)=\"✓\",\"✓\",\"\")","v":""}]
[null,null,null,null,null,{"$f":"IF('2. Service planning'!F193<>0,'2. Service planning'!F193,\"\")","v":""},{"$f":"IF(OFFSET('2. Service planning'!F193,0,'3. Checklist'!$D$3)=\"✓\",\"✓\",\"\")","v":""}]
[null,null,null,null,null,{"$f":"IF('2. Service planning'!F194<>0,'2. Service planning'!F194,\"\")","v":""},{"$f":"IF(OFFSET('2. Service planning'!F194,0,'3. Checklist'!$D$3)=\"✓\",\"✓\",\"\")","v":""}]
[null,null,null,null,null,{"$f":"IF('2. Service planning'!F195<>0,'2. Service planning'!F195,\"\")","v":""},{"$f":"IF(OFFSET('2. Service planning'!F195,0,'3. Checklist'!$D$3)=\"✓\",\"✓\",\"\")","v":""}]
[null,null,null,null,null,{"$f":"IF('2. Service planning'!F196<>0,'2. Service planning'!F196,\"\")","v":""},{"$f":"IF(OFFSET('2. Service planning'!F196,0,'3. Checklist'!$D$3)=\"✓\",\"✓\",\"\")","v":""}]
[null,null,null,null,null,{"$f":"IF('2. Service planning'!F197<>0,'2. Service planning'!F197,\"\")","v":""},{"$f":"IF(OFFSET('2. Service planning'!F197,0,'3. Checklist'!$D$3)=\"✓\",\"✓\",\"\")","v":""}]
[null,null,null,null,null,{"$f":"IF('2. Service planning'!F198<>0,'2. Service planning'!F198,\"\")","v":""},{"$f":"IF(OFFSET('2. Service planning'!F198,0,'3. Checklist'!$D$3)=\"✓\",\"✓\",\"\")","v":""}]
[null,null,null,null,null,{"$f":"IF('2. Service planning'!F199<>0,'2. Service planning'!F199,\"\")","v":""},{"$f":"IF(OFFSET('2. Service planning'!F199,0,'3. Checklist'!$D$3)=\"✓\",\"✓\",\"\")","v":""}]
[null,null,null,null,null,{"$f":"IF('2. Service planning'!F200<>0,'2. Service planning'!F200,\"\")","v":""},{"$f":"IF(OFFSET('2. Service planning'!F200,0,'3. Checklist'!$D$3)=\"✓\",\"✓\",\"\")","v":""}]
[null,null,null,null,null,{"$f":"IF('2. Service planning'!F201<>0,'2. Service planning'!F201,\"\")","v":""},{"$f":"IF(OFFSET('2. Service planning'!F201,0,'3. Checklist'!$D$3)=\"✓\",\"✓\",\"\")","v":""}]
[null,null,null,null,null,{"$f":"IF('2. Service planning'!F202<>0,'2. Service planning'!F202,\"\")","v":""},{"$f":"IF(OFFSET('2. Service planning'!F202,0,'3. Checklist'!$D$3)=\"✓\",\"✓\",\"\")","v":""}]
[null,null,null,null,null,{"$f":"IF('2. Service planning'!F203<>0,'2. Service planning'!F203,\"\")","v":""},{"$f":"IF(OFFSET('2. Service planning'!F203,0,'3. Checklist'!$D$3)=\"✓\",\"✓\",\"\")","v":""}]
[null,null,null,null,null,{"$f":"IF('2. Service planning'!F204<>0,'2. Service planning'!F204,\"\")","v":""},{"$f":"IF(OFFSET('2. Service planning'!F204,0,'3. Checklist'!$D$3)=\"✓\",\"✓\",\"\")","v":""}]
[null,null,null,null,null,{"$f":"IF('2. Service planning'!F205<>0,'2. Service planning'!F205,\"\")","v":""},{"$f":"IF(OFFSET('2. Service planning'!F205,0,'3. Checklist'!$D$3)=\"✓\",\"✓\",\"\")","v":""}]
[null,null,null,null,null,{"$f":"IF('2. Service planning'!F206<>0,'2. Service planning'!F206,\"\")","v":""},{"$f":"IF(OFFSET('2. Service planning'!F206,0,'3. Checklist'!$D$3)=\"✓\",\"✓\",\"\")","v":""}]
[null,null,null,null,null,{"$f":"IF('2. Service planning'!F207<>0,'2. Service planning'!F207,\"\")","v":""},{"$f":"IF(OFFSET('2. Service planning'!F207,0,'3. Checklist'!$D$3)=\"✓\",\"✓\",\"\")","v":""}]
[null,null,null,null,null,{"$f":"IF('2. Service planning'!F208<>0,'2. Service planning'!F208,\"\")","v":""},{"$f":"IF(OFFSET('2. Service planning'!F208,0,'3. Checklist'!$D$3)=\"✓\",\"✓\",\"\")","v":""}]
[null,null,null,null,null,{"$f":"IF('2. Service planning'!F209<>0,'2. Service planning'!F209,\"\")","v":""},{"$f":"IF(OFFSET('2. Service planning'!F209,0,'3. Checklist'!$D$3)=\"✓\",\"✓\",\"\")","v":""}]
[null,null,null,null,null,{"$f":"IF('2. Service planning'!F210<>0,'2. Service planning'!F210,\"\")","v":""},{"$f":"IF(OFFSET('2. Service planning'!F210,0,'3. Checklist'!$D$3)=\"✓\",\"✓\",\"\")","v":""}]
[null,null,null,null,null,{"$f":"IF('2. Service planning'!F211<>0,'2. Service planning'!F211,\"\")","v":""},{"$f":"IF(OFFSET('2. Service planning'!F211,0,'3. Checklist'!$D$3)=\"✓\",\"✓\",\"\")","v":""}]
[null,null,null,null,null,{"$f":"IF('2. Service planning'!F212<>0,'2. Service planning'!F212,\"\")","v":""},{"$f":"IF(OFFSET('2. Service planning'!F212,0,'3. Checklist'!$D$3)=\"✓\",\"✓\",\"\")","v":""}]
[null,null,null,null,null,{"$f":"IF('2. Service planning'!F213<>0,'2. Service planning'!F213,\"\")","v":""},{"$f":"IF(OFFSET('2. Service planning'!F213,0,'3. Checklist'!$D$3)=\"✓\",\"✓\",\"\")","v":""}]
[null,null,null,null,null,{"$f":"IF('2. Service planning'!F214<>0,'2. Service planning'!F214,\"\")","v":""},{"$f":"IF(OFFSET('2. Service planning'!F214,0,'3. Checklist'!$D$3)=\"✓\",\"✓\",\"\")","v":""}]
[null,null,null,null,null,{"$f":"IF('2. Service planning'!F215<>0,'2. Service planning'!F215,\"\")","v":""},{"$f":"IF(OFFSET('2. Service planning'!F215,0,'3. Checklist'!$D$3)=\"✓\",\"✓\",\"\")","v":""}]
[null,null,null,null,null,{"$f":"IF('2. Service planning'!F216<>0,'2. Service planning'!F216,\"\")","v":""},{"$f":"IF(OFFSET('2. Service planning'!F216,0,'3. Checklist'!$D$3)=\"✓\",\"✓\",\"\")","v":""}]
[null,null,null,null,null,{"$f":"IF('2. Service planning'!F217<>0,'2. Service planning'!F217,\"\")","v":""},{"$f":"IF(OFFSET('2. Service planning'!F217,0,'3. Checklist'!$D$3)=\"✓\",\"✓\",\"\")","v":""}]
[null,null,null,null,null,{"$f":"IF('2. Service planning'!F218<>0,'2. Service planning'!F218,\"\")","v":""},{"$f":"IF(OFFSET('2. Service planning'!F218,0,'3. Checklist'!$D$3)=\"✓\",\"✓\",\"\")","v":""}]
[null,null,null,null,null,{"$f":"IF('2. Service planning'!F219<>0,'2. Service planning'!F219,\"\")","v":""},{"$f":"IF(OFFSET('2. Service planning'!F219,0,'3. Checklist'!$D$3)=\"✓\",\"✓\",\"\")","v":""}]
[]
[null,null,"HL"]

{"sheet":"BlankPage","index":4,"n_rows":33,"n_cols":17,"rows_kept":33,"cut":false,"hidden":true,"merged":[]}
["DevFrame settings",null,"H",null,null,null,null,null,null,null,null,null,null,null,null,null,"HL"]
["HiddenStatus","VERY HIDDEN"]
["ProtectSheet",false]
["HeadingsVisibility",false]
["GridlineVisibility",false]
[]
["Protection settings"]
["DrawingObjects",true]
["Contents",true]
["Scenarios",true]
["UserInterfaceOnly",false]
["AllowFormattingCells",false]
["AllowFormattingColumns",false]
["AllowFormattingRows",false]
["AllowInsertingColumns",false]
["AllowInsertingRows",false]
["AllowInsertingHyperlinks",false]
["AllowDeletingColumns",false]
["AllowDeletingRows",false]
["AllowSorting",false]
["AllowFiltering",false]
["AllowUsingPivotTables",false]
["EnableSelection",false]
[]
["Other settings"]
["MarkProtectedCellsStatus",true]
["RowColumnDimensionStatus",false]
[]
[]
[]
["TableStart"]
["TableStartRow",{"$f":"ROW(TableStart)","v":6},"HL"]
["TableStartColumn",{"$f":"COLUMN(TableStart)","v":5}]

{"sheet":"DevFrame","index":5,"n_rows":38,"n_cols":6,"rows_kept":38,"cut":false,"hidden":true,"merged":[]}
["DevFrame settings",null,"H"]
["HiddenStatus","VERY HIDDEN",null,"HiddenStatuses","TrueFalse"]
["ProtectSheet",false,null,"VISIBLE",true]
["HeadingsVisibility",true,null,"HIDDEN",false]
["GridlineVisibility",true,null,"VERY HIDDEN"]
[]
["Protection settings",null,null,"ProgrammingMode"]
["DrawingObjects",true,null,false]
["Contents",true]
["Scenarios",true,null,"AllowAddSheet","ProtectedView"]
["UserInterfaceOnly",false,null,true,false]
["AllowFormattingCells",false]
["AllowFormattingColumns",false]
["AllowFormattingRows",false]
["AllowInsertingColumns",false,null,null,"DEVELOPMENT FRAME"]
["AllowInsertingRows",false,null,"Features:"]
["AllowInsertingHyperlinks",false,null,"- Define visibility status of each sheet"]
["AllowDeletingColumns",false,null,"- Define which cells to protect"]
["AllowDeletingRows",false,null,"- Protect sheet with password"]
["AllowSorting",false,null,"- Define if to show the headings of each page"]
["AllowFiltering",false,null,"- Define if to show the gridline in each page"]
["AllowUsingPivotTables",false,null,"- Dev frame is protected by separate password"]
["EnableSelection",false,null,"- Define which rows and columns to hide"]
[null,null,null,"      - Rows and columns with \"H\" are hidden"]
["Other settings",null,null,"      - From the last \"H\", all the following rows (or columns) are hidden"]
["MarkProtectedCellsStatus",true]
["RowColumnDimensionStatus",false,null,"Activation:"]
[null,null,null,"- Activate development frame: CTRL + r"]
[null,null,null,"- Protect a selected cell: CTRL + p"]
[null,null,null,"- Unprotect a selected cell: CTRL + o"]
[]
[null,null,null,"Version control:"]
[null,null,null,"Version","Release date","Changed features"]
[null,null,null,"1.0","2017-01-08","First issue"]
[null,null,null,"1.1","2017-01-18","Updated SubErrorHandler (writes log file"]
[null,null,null,"1.2","2017-02-10","Added EnableSelection option"]
[null,null,null,"1.4","2017-03-10","Added UserInterfaceOnly renewal at workbook open"]
[null,null,null,"1.5","2017-05-21","Added TableStart variable and HL row-hiding parameter"]